bitfinex/quotes_BTCUSD_20241223
["timestamp","ask_amount","ask_price","bid_price","bid_amount"]
[1734934190120,0.00016113,95215.0,95214.0,0.210053]
[1734934190479,0.00016113,95215.0,95214.0,0.212053]
[1734934191878,0.00016113,95215.0,95214.0,0.210053]
[1734934192095,0.00116113,95215.0,95214.0,0.217053]
[1734934192732,0.00116113,95215.0,95214.0,0.215053]
[1734934192934,0.00116113,95215.0,95214.0,0.217053]
[1734934193575,0.00116113,95215.0,95214.0,0.367053]
[1734934193795,0.00116113,95215.0,95214.0,0.467053]
[1734934194001,0.00133253,95215.0,95214.0,0.217053]
[1734934194205,0.00133253,95215.0,95214.0,0.007]
[1734934194619,0.10264093,95215.0,95214.0,0.007]
[1734934194987,0.10264093,95215.0,95214.0,0.005]
[1734934195169,0.10164093,95215.0,95214.0,0.002]
[1734934195568,0.10264093,95215.0,95214.0,0.009]
[1734934195798,0.10164093,95215.0,95214.0,0.002]
[1734934196231,0.10164093,95215.0,95214.0,0.004]
[1734934196430,0.10164093,95215.0,95209.0,0.210062]
[1734934196662,0.00033253,95215.0,95214.0,0.002]
[1734934196870,0.00133253,95215.0,95214.0,0.002]
[1734934197172,0.00033253,95215.0,95214.0,0.002]
[1734934197927,0.00033253,95215.0,95200.0,0.12610319]
[1734934198121,0.1013084,95214.0,95200.0,0.12610319]
[1734934198326,0.1013084,95214.0,95210.0,0.210061]
[1734934198978,0.00033253,95215.0,95210.0,0.420122]
[1734934199130,0.00033253,95215.0,95214.0,0.001]
[1734934199330,0.00033253,95215.0,95210.0,0.210061]
[1734934199753,0.00033253,95215.0,95210.0,0.212061]
[1734934199951,0.00033253,95215.0,95210.0,0.213061]
[1734934200153,0.00033253,95215.0,95210.0,0.211061]
[1734934200492,0.00033253,95215.0,95214.0,0.004]
[1734934200927,0.10164093,95215.0,95210.0,0.001]
[1734934201094,0.10164093,95215.0,95210.0,0.005]
[1734934201095,0.31240904,95214.0,95210.0,0.005]
[1734934201420,0.10235604,95214.0,95210.0,0.005]
[1734934201715,0.10235604,95214.0,95210.0,0.004]
[1734934202125,0.10235604,95214.0,95210.0,0.006]
[1734934202506,0.10235604,95214.0,95205.0,0.210071]
[1734934202744,0.10235604,95214.0,95205.0,0.420143]
[1734934202884,0.00104764,95213.0,95210.0,0.001]
[1734934203087,0.1013084,95212.0,95210.0,0.001]
[1734934203513,0.00104764,95211.0,95210.0,0.003]
[1734934203713,0.10235604,95211.0,95205.0,0.001]
[1734934203925,0.1013084,95210.0,95205.0,0.001]
[1734934204126,0.00104764,95209.0,95205.0,0.001]
[1734934204303,0.1013084,95209.0,95205.0,0.21107]
[1734934204890,0.1013084,95209.0,95205.0,0.21007]
[1734934206140,0.10235604,95208.0,95205.0,0.001]
[1734934206545,0.10235604,95208.0,95205.0,0.003]
[1734934206744,0.1013084,95208.0,95206.0,0.21007]
[1734934206987,0.00033253,95215.0,95198.0,0.12610319]
[1734934207303,0.00033253,95215.0,95211.0,0.210057]
[1734934208289,0.1013084,95214.0,95200.0,0.420164]
[1734934208497,0.00104764,95213.0,95207.0,0.210068]
[1734934208695,0.1013084,95212.0,95207.0,0.210068]
[1734934208894,0.1013084,95212.0,95211.0,0.001]
[1734934209499,0.1013084,95212.0,95207.0,0.210068]
[1734934209697,0.1013084,95212.0,95207.0,0.001]
[1734934210287,0.00104764,95211.0,95207.0,0.001]
[1734934210487,0.1013084,95210.0,95207.0,0.001]
[1734934210732,0.00104764,95209.0,95207.0,0.004]
[1734934210907,0.1013084,95208.0,95207.0,0.004]
[1734934211130,0.10235604,95208.0,95207.0,0.003]
[1734934212114,0.1013084,95208.0,95207.0,0.003]
[1734934212337,0.1013084,95208.0,95197.0,0.210089]
[1734934212600,0.00104764,95207.0,95192.0,0.210099]
[1734934212853,0.1013084,95206.0,95192.0,0.210099]
[1734934213085,0.00104764,95205.0,95192.0,0.210099]
[1734934213323,0.1013084,95204.0,95193.0,0.420196]
[1734934213575,0.1013084,95204.0,95193.0,0.210097]
[1734934214468,0.00104764,95203.0,95186.0,0.420228]
[1734934214642,0.1013084,95202.0,95186.0,0.420228]
[1734934214887,0.00104764,95201.0,95186.0,0.420228]
[1734934215090,0.1013084,95200.0,95186.0,0.420228]
[1734934215293,0.00104764,95199.0,95186.0,0.420228]
[1734934215646,0.1013084,95198.0,95193.0,0.002]
[1734934215849,0.1013084,95198.0,95175.0,0.210139]
[1734934215850,0.28703764,95197.0,95175.0,0.210139]
[1734934216067,0.1013084,95196.0,95175.0,0.210139]
[1734934216244,0.210097,95194.0,95175.0,0.210139]
[1734934216439,0.10235604,95193.0,95186.0,0.001]
[1734934217024,0.12610319,95200.0,95186.0,0.001]
[1734934217025,0.08,95207.0,95186.0,0.001]
[1734934217188,0.1013084,95206.0,95201.0,0.210081]
[1734934218003,0.00033253,95215.0,95206.0,0.210069]
[1734934218207,0.1013084,95214.0,95202.0,0.210079]
[1734934218406,0.1013084,95214.0,95186.0,0.001]
[1734934218407,0.08,95212.0,95186.0,0.001]
[1734934218647,0.10235604,95211.0,95185.0,0.00105047]
[1734934218836,0.210061,95210.0,95195.0,0.210094]
[1734934219057,0.10235604,95209.0,95195.0,0.210094]
[1734934219210,0.1013084,95209.0,95200.0,0.210081]
[1734934220657,0.1023084,95209.0,95200.0,0.210081]
[1734934222333,0.1033084,95209.0,95200.0,0.210081]
[1734934223162,0.00104764,95208.0,95196.0,0.210091]
[1734934223384,0.1013084,95207.0,95196.0,0.210091]
[1734934223580,0.00104764,95206.0,95196.0,0.210091]
[1734934223788,0.1013084,95205.0,95196.0,0.210091]
[1734934224160,0.1013084,95205.0,95191.0,0.210102]
[1734934224359,0.1013084,95205.0,95193.0,0.210099]
[1734934224824,0.001,95208.0,95185.0,0.210115]
[1734934224825,0.001,95208.0,95199.0,0.210084]
[1734934225008,0.1013084,95208.0,95199.0,0.210084]
[1734934225351,0.1023084,95208.0,95199.0,0.210084]
[1734934225568,0.1013084,95208.0,95199.0,0.210084]
[1734934226087,0.1033084,95208.0,95199.0,0.210084]
[1734934230828,0.002,95208.0,95204.0,0.210073]
[1734934231033,0.002,95208.0,95204.0,0.420147]
[1734934231273,0.002,95208.0,95206.0,0.21007]
[1734934231465,0.001,95208.0,95207.0,0.00105018]
[1734934231862,0.00033253,95215.0,95214.0,0.210053]
[1734934232393,0.00033253,95215.0,95208.0,0.210066]
[1734934232820,0.001,95208.0,95207.0,0.006]
[1734934233015,0.1023084,95208.0,95207.0,0.006]
[1734934233257,0.1013084,95208.0,95199.0,0.420171]
[1734934234137,0.00033253,95215.0,95206.0,0.003]
[1734934234138,0.18105604,95207.0,95206.0,0.003]
[1734934234560,0.18105604,95207.0,95194.0,0.210096]
[1734934235036,0.18105604,95207.0,95199.0,0.002]
[1734934235455,0.18105604,95207.0,95194.0,0.420193]
[1734934235656,0.21007,95206.0,95189.0,0.09398575]
[1734934235857,0.18000404,95207.0,95189.0,0.09398575]
[1734934235858,0.10235604,95205.0,95189.0,0.09398575]
[1734934236235,0.10235604,95205.0,95199.0,0.003]
[1734934236647,0.10235604,95205.0,95184.0,0.09398575]
[1734934237014,0.02068137,95200.0,95189.0,0.003]
[1734934237216,0.210088,95198.0,95184.0,0.09398575]
[1734934237427,0.10235604,95197.0,95183.0,0.1]
[1734934237627,0.10235604,95197.0,95184.0,0.15]
[1734934238436,0.10235604,95197.0,95184.0,0.360118]
[1734934238901,0.10235604,95197.0,95187.0,0.210112]
[1734934239118,0.10235604,95197.0,95184.0,0.360118]
[1734934239580,0.10235604,95197.0,95186.0,0.0010857]
[1734934240487,0.0799,95195.0,95186.0,0.0030857]
[1734934240690,0.10235604,95194.0,95186.0,0.0030857]
[1734934241310,0.10235604,95194.0,95186.0,0.0020857]
[1734934242570,0.10335604,95194.0,95186.0,0.0020857]
[1734934242771,0.10335604,95194.0,95186.0,8.57e-05]
[1734934243180,0.10435604,95194.0,95186.0,8.57e-05]
[1734934244145,0.10235604,95194.0,95186.0,0.2101997]
[1734934244357,0.10435604,95194.0,95186.0,0.2101997]
[1734934244550,0.10335604,95194.0,95186.0,0.2101997]
[1734934244782,0.0459,95193.0,95186.0,0.2101997]
[1734934244991,0.210103,95191.0,95186.0,8.57e-05]
[1734934245200,0.08354764,95190.0,95186.0,8.57e-05]
[1734934245429,0.210108,95189.0,95186.0,8.57e-05]
[1734934245642,0.210112,95187.0,95186.0,8.57e-05]
[1734934245815,0.3114204,95187.0,95186.0,8.57e-05]
[1734934246797,0.3114204,95187.0,95186.0,0.0020857]
[1734934247003,0.3114204,95187.0,95186.0,8.57e-05]
[1734934247336,0.3114204,95187.0,95186.0,0.0030857]
[1734934247536,0.3114204,95187.0,95186.0,0.0010857]
[1734934247945,0.3114204,95187.0,95186.0,0.0020857]
[1734934248329,0.3114204,95187.0,95186.0,0.0030857]
[1734934248774,0.3114204,95187.0,95186.0,0.0020857]
[1734934249313,0.3124204,95187.0,95186.0,8.57e-05]
[1734934249831,0.3134204,95187.0,95186.0,8.57e-05]
[1734934250034,0.1023084,95187.0,95186.0,8.57e-05]
[1734934250363,0.1033084,95187.0,95186.0,8.57e-05]
[1734934250562,0.1013084,95187.0,95186.0,8.57e-05]
[1734934250955,0.1023084,95187.0,95186.0,8.57e-05]
[1734934251925,0.1013084,95187.0,95186.0,8.57e-05]
[1734934252145,0.1013084,95187.0,95186.0,0.0010857]
[1734934252502,0.1804084,95187.0,95186.0,0.0010857]
[1734934252730,0.1804084,95187.0,95186.0,0.0040857]
[1734934252918,0.1804084,95187.0,95186.0,0.0010857]
[1734934253277,0.1804084,95187.0,95186.0,0.0050857]
[1734934253485,0.1804084,95187.0,95186.0,0.0010857]
[1734934253885,0.1804084,95187.0,95186.0,8.57e-05]
[1734934254098,0.1804084,95187.0,95186.0,0.0020857]
[1734934254341,0.1013084,95187.0,95186.0,0.0020857]
[1734934254497,0.1033084,95187.0,95186.0,0.0020857]
[1734934254697,0.1033084,95187.0,95186.0,8.57e-05]
[1734934254919,0.1043084,95187.0,95186.0,8.57e-05]
[1734934255570,0.1033084,95187.0,95186.0,8.57e-05]
[1734934255726,0.10435604,95187.0,95186.0,0.0010857]
[1734934256694,0.10235604,95187.0,95186.0,0.0010857]
[1734934256896,0.22765604,95187.0,95186.0,0.0010857]
[1734934257199,0.2266084,95187.0,95186.0,0.0020857]
[1734934257427,0.2266084,95187.0,95186.0,8.57e-05]
[1734934257630,0.2286084,95187.0,95166.0,0.2102427]
[1734934257811,0.12610319,95180.0,95166.0,0.2102427]
[1734934258056,0.10235604,95179.0,95166.0,8.57e-05]
[1734934258427,0.10235604,95179.0,95168.0,0.210154]
[1734934259053,0.10235604,95179.0,95168.0,0.21069099]
[1734934259610,0.10235604,95179.0,95174.0,0.210141]
[1734934259810,0.1013084,95179.0,95174.0,0.210141]
[1734934260190,0.00104764,95178.0,95174.0,0.210141]
[1734934260551,0.1273,95187.0,95174.0,0.210141]
[1734934260552,0.1013084,95177.0,95174.0,0.210141]
[1734934261356,0.1013084,95177.0,95174.0,0.214141]
[1734934261558,0.00104764,95176.0,95174.0,0.001]
[1734934261804,0.1013084,95175.0,95174.0,0.001]
[1734934261983,0.1013084,95175.0,95168.0,0.21069099]
[1734934262191,0.00104764,95174.0,95168.0,0.21069099]
[1734934262357,0.1013084,95173.0,95168.0,0.21069099]
[1734934262537,0.00104764,95172.0,95168.0,0.21069099]
[1734934262739,0.1013084,95171.0,95168.0,0.21069099]
[1734934264193,0.1253,95187.0,95168.0,0.21069099]
[1734934264194,0.1253,95187.0,95178.0,0.21013]
[1734934264390,0.1013084,95186.0,95174.0,0.210139]
[1734934264705,0.00104764,95185.0,95174.0,0.210139]
[1734934265034,0.1013084,95184.0,95174.0,0.210139]
[1734934265308,0.1013084,95184.0,95174.0,0.420278]
[1734934265483,0.1013084,95184.0,95174.0,0.210139]
[1734934266500,0.00104764,95183.0,95174.0,0.210139]
[1734934266776,0.1013084,95182.0,95169.0,0.210152]
[1734934266987,0.00104764,95181.0,95169.0,0.210152]
[1734934267217,0.1013084,95180.0,95169.0,0.210152]
[1734934267371,0.00104764,95179.0,95174.0,0.210139]
[1734934267745,0.1013084,95178.0,95174.0,0.210139]
[1734934267954,0.1013084,95178.0,95170.0,0.21015]
[1734934268141,0.00104764,95177.0,95169.0,0.002]
[1734934268286,0.1013084,95176.0,95169.0,0.002]
[1734934268490,0.00104764,95175.0,95168.0,0.00062259]
[1734934268696,0.1013084,95174.0,95168.0,0.00062259]
[1734934269217,0.00104764,95173.0,95168.0,0.00062259]
[1734934269383,0.1013084,95172.0,95168.0,0.00062259]
[1734934269538,0.00104764,95171.0,95168.0,0.00062259]
[1734934269756,0.0776,95169.0,95168.0,0.00062259]
[1734934270090,0.17995604,95169.0,95168.0,0.00062259]
[1734934271030,0.22825604,95169.0,95168.0,0.00062259]
[1734934271184,0.2272084,95169.0,95168.0,0.00262259]
[1734934271389,0.2282084,95169.0,95168.0,0.00862259]
[1734934271554,0.2272084,95169.0,95168.0,0.00062259]
[1734934272971,0.3502084,95169.0,95168.0,0.00062259]
[1734934273372,0.1245,95156.0,95136.0,0.0143897]
[1734934273574,0.256723,95137.0,95136.0,0.0143897]
[1734934273802,0.3580314,95137.0,95136.0,0.0143897]
[1734934274894,0.14834539,95137.0,95136.0,0.0153897]
[1734934275142,0.14834539,95137.0,95136.0,0.0183897]
[1734934275580,0.14939303,95137.0,95136.0,0.0143897]
[1734934276219,0.15039303,95137.0,95136.0,0.0143897]
[1734934277498,0.210225,95136.0,95110.0,0.01275444]
[1734934277691,0.10235604,95135.0,95110.0,0.01275444]
[1734934277865,0.10235604,95135.0,95108.0,0.01419753]
[1734934278069,0.10235604,95135.0,95115.0,0.21027]
[1734934278352,0.10235604,95135.0,95121.0,0.210257]
[1734934279275,0.10235604,95135.0,95115.0,0.21027]
[1734934279466,0.10235604,95135.0,95115.0,0.21127]
[1734934279830,0.10235604,95135.0,95115.0,0.421541]
[1734934280777,0.10235604,95135.0,95121.0,0.002]
[1734934280980,0.10235604,95135.0,95121.0,0.001]
[1734934281324,0.10235604,95135.0,95121.0,0.211257]
[1734934281947,0.10235604,95135.0,95121.0,0.213257]
[1734934282157,0.10235604,95135.0,95127.0,0.210244]
[1734934282510,0.10235604,95135.0,95122.0,0.210256]
[1734934282636,0.10235604,95135.0,95121.0,0.002]
[1734934282844,0.00053699,95137.0,95133.0,0.21023]
[1734934283461,0.00053699,95137.0,95131.0,0.210236]
[1734934283462,0.1833084,95136.0,95131.0,0.210236]
[1734934283671,0.1013084,95136.0,95131.0,0.210236]
[1734934284033,0.1013084,95136.0,95131.0,0.420472]
[1734934284446,0.1013084,95136.0,95134.0,0.210229]
[1734934284988,0.1023084,95136.0,95134.0,0.210229]
[1734934285195,0.1013084,95136.0,95134.0,0.210229]
[1734934285957,0.1013084,95136.0,95134.0,0.213229]
[1734934286274,0.00053699,95137.0,95134.0,0.213229]
[1734934286479,0.00053699,95137.0,95134.0,0.003]
[1734934286480,0.10184539,95137.0,95134.0,0.003]
[1734934286898,0.10184539,95137.0,95135.0,0.210227]
[1734934287272,0.1023084,95136.0,95134.0,0.006]
[1734934287485,0.1023084,95136.0,95134.0,0.002]
[1734934287830,0.1023084,95136.0,95134.0,0.006]
[1734934288029,0.1013084,95136.0,95133.0,0.210231]
[1734934288246,0.1013084,95136.0,95135.0,0.002]
[1734934288457,0.1023084,95136.0,95135.0,0.002]
[1734934288656,0.1013084,95136.0,95135.0,0.210227]
[1734934289864,0.00053699,95137.0,95135.0,0.210227]
[1734934290067,0.00053699,95137.0,95136.0,0.00105109]
[1734934290312,0.00070839,95137.0,95136.0,0.15105096]
[1734934291987,0.00070839,95137.0,95136.0,0.15305096]
[1734934293715,0.00070839,95137.0,95136.0,0.15105096]
[1734934294219,0.00170839,95137.0,95136.0,0.16205096]
[1734934294622,0.00070839,95137.0,95136.0,0.15405096]
[1734934294771,0.00170839,95137.0,95136.0,0.16005096]
[1734934295184,0.00170839,95137.0,95136.0,0.15405087]
[1734934295591,0.00170839,95137.0,95136.0,0.15105087]
[1734934296000,0.00370839,95137.0,95136.0,0.15105087]
[1734934297293,0.00070839,95137.0,95136.0,0.15105087]
[1734934297495,0.00170839,95137.0,95136.0,0.15505087]
[1734934298004,0.00070839,95137.0,95136.0,0.15105087]
[1734934298204,0.00070839,95137.0,95136.0,0.15405087]
[1734934298614,0.00070839,95137.0,95136.0,0.4543084]
[1734934298818,0.0815,95172.0,95144.0,0.1]
[1734934299014,0.0815,95172.0,95136.0,0.3294084]
[1734934299015,0.0495,95188.0,95163.0,0.15]
[1734934299203,0.0825,95191.0,95185.0,0.210117]
[1734934299616,0.00104764,95190.0,95185.0,0.210117]
[1734934300087,0.00104764,95190.0,95178.0,0.210131]
[1734934300497,0.00104764,95190.0,95161.0,0.2261]
[1734934300665,0.00104764,95190.0,95162.0,0.00105057]
[1734934301013,0.003,95172.0,95171.0,0.210148]
[1734934301217,0.00104764,95190.0,95185.0,0.210117]
[1734934301550,0.0011712,95186.0,95185.0,0.210117]
[1734934303671,0.0011712,95186.0,95185.0,0.213117]
[1734934304092,0.0001712,95186.0,95185.0,0.560117]
[1734934304315,0.0001712,95186.0,95185.0,0.6654254]
[1734934304965,2e-07,95186.0,95185.0,0.6654254]
[1734934305180,0.0001712,95207.0,95206.0,0.36007]
[1734934305387,0.00033233,95207.0,95206.0,0.6390784]
[1734934306042,7.3e-07,95208.0,95207.0,0.35]
[1734934306253,7.3e-07,95208.0,95207.0,0.4513084]
[1734934307100,0.00100073,95208.0,95207.0,0.4603084]
[1734934307324,7.3e-07,95208.0,95207.0,0.5096084]
[1734934307528,4e-07,95215.0,95214.0,0.35]
[1734934307741,4e-07,95215.0,95214.0,0.4513084]
[1734934309170,4e-07,95215.0,95214.0,0.3513084]
[1734934309592,0.0060004,95215.0,95214.0,0.2513084]
[1734934309791,4e-07,95215.0,95213.0,0.15]
[1734934310121,0.0050004,95215.0,95213.0,0.15]
[1734934310326,0.0020004,95215.0,95213.0,0.15]
[1734934310537,4e-07,95215.0,95213.0,0.15]
[1734934310751,4e-07,95215.0,95214.0,0.00104999]
[1734934310752,0.0030004,95215.0,95214.0,0.00104999]
[1734934311707,0.0030004,95215.0,95214.0,0.46110299]
[1734934311910,0.0020004,95215.0,95214.0,0.360053]
[1734934312121,0.0020004,95215.0,95214.0,0.460053]
[1734934312523,4e-07,95215.0,95214.0,0.460053]
[1734934312746,0.0020004,95215.0,95214.0,0.460053]
[1734934312980,0.0070004,95215.0,95214.0,0.460053]
[1734934313177,4e-07,95215.0,95214.0,0.460053]
[1734934313447,0.0020004,95215.0,95214.0,0.460053]
[1734934313651,0.0050004,95215.0,95214.0,0.460053]
[1734934314220,0.0050004,95215.0,95214.0,0.360053]
[1734934314421,0.0050004,95215.0,95214.0,0.460053]
[1734934315064,0.0030004,95215.0,95214.0,0.6613614]
[1734934315437,0.0050004,95215.0,95214.0,0.6613614]
[1734934315612,0.0020004,95215.0,95214.0,0.6613614]
[1734934315776,0.0060004,95215.0,95214.0,0.6613614]
[1734934315974,0.0040004,95215.0,95214.0,0.6613614]
[1734934316170,0.0060004,95215.0,95214.0,0.6613614]
[1734934316395,0.0090004,95215.0,95214.0,0.6613614]
[1734934316598,0.0050004,95215.0,95214.0,0.6613614]
[1734934316879,4e-07,95215.0,95214.0,0.6613614]
[1734934317635,4e-07,95215.0,95214.0,0.7406614]
[1734934318372,4e-07,95233.0,95232.0,0.460013]
[1734934318642,0.0001714,95264.0,95263.0,0.359945]
[1734934318868,0.0001714,95264.0,95263.0,0.6612534]
[1734934319123,6.2e-07,95264.0,95263.0,0.72488692]
[1734934319368,0.0800712,95303.0,95281.0,0.459905]
[1734934319586,0.00016109,95282.0,95281.0,0.62484692]
[1734934319788,2.9e-07,95282.0,95281.0,0.72484692]
[1734934321981,0.00200029,95282.0,95281.0,0.72484692]
[1734934322184,2.9e-07,95282.0,95281.0,0.72484692]
[1734934322348,0.00200029,95282.0,95281.0,0.72484692]
[1734934322748,0.00100029,95282.0,95281.0,0.72484692]
[1734934323162,2.9e-07,95282.0,95281.0,0.72484692]
[1734934323605,2.9e-07,95282.0,95281.0,0.6612134]
[1734934323809,2.9e-07,95282.0,95281.0,0.74784692]
[1734934323964,0.0001716,95310.0,95281.0,0.74784692]
[1734934323965,4e-07,95304.0,95303.0,0.559856]
[1734934324125,4e-07,95304.0,95303.0,0.72479792]
[1734934325121,4e-07,95304.0,95303.0,0.74531545]
[1734934325317,4e-07,95304.0,95303.0,0.359856]
[1734934326160,4e-07,95304.0,95299.0,0.209865]
[1734934326302,4e-07,95304.0,95299.0,0.41973]
[1734934326705,4e-07,95304.0,95285.0,0.01194473]
[1734934326957,0.0457,95290.0,95270.0,0.209928]
[1734934327160,0.10235604,95289.0,95276.0,0.209915]
[1734934327389,0.10235604,95289.0,95283.0,0.209899]
[1734934327594,0.10235604,95289.0,95281.0,8.55e-05]
[1734934328549,0.08,95288.0,95281.0,8.55e-05]
[1734934328785,0.10235604,95287.0,95281.0,8.55e-05]
[1734934329724,0.209894,95286.0,95281.0,8.55e-05]
[1734934329923,0.10235604,95285.0,95281.0,8.55e-05]
[1734934330738,0.1013084,95285.0,95281.0,8.55e-05]
[1734934331148,0.00104764,95284.0,95281.0,8.55e-05]
[1734934331345,0.1013084,95283.0,95281.0,8.55e-05]
[1734934331550,0.00104764,95282.0,95281.0,8.55e-05]
[1734934331745,0.10235604,95282.0,95281.0,8.55e-05]
[1734934332535,0.10235604,95282.0,95268.0,0.00016109]
[1734934332536,0.209929,95270.0,95268.0,0.00016109]
[1734934332738,0.19034566,95250.0,95221.0,0.1]
[1734934332939,0.1013084,95249.0,95228.0,0.00104995]
[1734934333140,0.1013084,95249.0,95239.0,0.209996]
[1734934333347,0.0813,95248.0,95216.0,0.1]
[1734934333569,0.0813,95248.0,95236.0,0.210002]
[1734934333947,0.10235604,95247.0,95221.0,0.15]
[1734934334266,0.0465,95246.0,95234.0,0.210007]
[1734934334447,0.10235604,95245.0,95234.0,0.210007]
[1734934334795,0.10235604,95245.0,95236.0,0.004]
[1734934334991,0.00104764,95245.0,95237.0,0.420004]
[1734934335195,0.0465,95246.0,95237.0,0.420004]
[1734934335442,0.1478084,95246.0,95236.0,0.004]
[1734934335761,0.10235604,95245.0,95236.0,0.004]
[1734934335987,0.209989,95243.0,95236.0,0.006]
[1734934336193,0.209993,95241.0,95236.0,0.006]
[1734934336402,0.10235604,95240.0,95236.0,0.004]
[1734934336603,0.10235604,95240.0,95221.0,0.210035]
[1734934336804,0.2927017,95240.0,95221.0,0.210035]
[1734934337008,0.209998,95239.0,95214.0,0.210051]
[1734934337157,0.210002,95237.0,95234.0,0.005]
[1734934337390,0.10235604,95236.0,95234.0,0.005]
[1734934337617,0.10235604,95236.0,95216.0,0.210048]
[1734934337844,0.10235604,95236.0,95217.0,0.00105012]
[1734934338036,0.10235604,95236.0,95211.0,0.210057]
[1734934338037,0.19034566,95230.0,95211.0,0.210057]
[1734934338346,0.210022,95228.0,95210.0,0.21006]
[1734934338555,0.210022,95228.0,95202.0,0.15]
[1734934338556,0.210026,95226.0,95202.0,0.15]
[1734934338674,0.10235604,95225.0,95201.0,0.210081]
[1734934338876,0.0462,95219.0,95195.0,0.210094]
[1734934339181,0.31240104,95218.0,95211.0,0.001]
[1734934339383,0.210051,95215.0,95211.0,0.001]
[1734934339591,0.10235604,95214.0,95211.0,0.001]
[1734934339804,0.1013084,95214.0,95211.0,0.001]
[1734934340229,0.00104764,95213.0,95211.0,0.001]
[1734934340428,0.1013084,95212.0,95211.0,0.001]
[1734934340680,0.290459,95211.0,95188.0,0.210109]
[1734934340888,0.210064,95209.0,95206.0,0.0020856]
[1734934341051,0.210068,95207.0,95206.0,0.0020856]
[1734934341259,0.3113764,95207.0,95206.0,8.56e-05]
[1734934342241,0.1083084,95207.0,95206.0,0.00162282]
[1734934342464,0.1013084,95207.0,95206.0,0.00062282]
[1734934343041,0.1013084,95207.0,95206.0,0.00162282]
[1734934343579,0.1013084,95207.0,95206.0,0.00062282]
[1734934343829,0.1043084,95207.0,95206.0,0.00062282]
[1734934343998,0.1053084,95207.0,95206.0,0.00062282]
[1734934344372,0.1043084,95207.0,95206.0,0.00062282]
[1734934344732,0.1023084,95207.0,95206.0,0.00062282]
[1734934344955,0.1043084,95207.0,95206.0,0.00062282]
[1734934345493,0.1073084,95207.0,95206.0,0.00062282]
[1734934346152,0.1063084,95207.0,95206.0,0.00062282]
[1734934346578,0.1073084,95207.0,95206.0,0.00062282]
[1734934346988,0.1063084,95207.0,95206.0,0.00062282]
[1734934347466,0.1023084,95207.0,95206.0,0.00062282]
[1734934347669,0.1043084,95207.0,95185.0,8.55e-05]
[1734934347897,0.1043084,95207.0,95204.0,0.210073]
[1734934348106,0.1023084,95207.0,95204.0,0.210073]
[1734934348506,0.1043084,95207.0,95204.0,0.210073]
[1734934348789,0.1023084,95207.0,95197.0,0.21009]
[1734934348942,0.1033084,95207.0,95197.0,0.21009]
[1734934349137,0.1013084,95207.0,95203.0,0.210075]
[1734934349770,0.1013084,95207.0,95196.0,0.00016113]
[1734934349927,0.10235604,95206.0,95196.0,0.00016113]
[1734934350961,0.210073,95205.0,95196.0,0.00016113]
[1734934351174,0.210088,95199.0,95196.0,0.00016113]
[1734934351517,0.10235604,95198.0,95196.0,0.00016113]
[1734934351803,0.21009,95197.0,95196.0,0.00016113]
[1734934351973,0.4395984,95197.0,95196.0,0.00016113]
[1734934352356,0.54857474,95197.0,95196.0,0.00016113]
[1734934352599,0.54857474,95197.0,95196.0,0.00216113]
[1734934352996,0.4625984,95197.0,95196.0,0.00216113]
[1734934353402,0.4665984,95197.0,95196.0,0.00216113]
[1734934353832,0.4625984,95197.0,95196.0,0.00216113]
[1734934354236,0.4675984,95197.0,95196.0,0.00216113]
[1734934354555,0.4675984,95197.0,95196.0,0.00016113]
[1734934354767,0.4765984,95197.0,95196.0,0.00116113]
[1734934355127,0.4675984,95197.0,95196.0,0.00016113]
[1734934355323,0.4625984,95197.0,95196.0,0.00116113]
[1734934355697,0.4715984,95197.0,95196.0,0.00016113]
[1734934355871,0.4755984,95197.0,95196.0,0.00016113]
[1734934356067,0.4845984,95197.0,95196.0,0.00116113]
[1734934356213,0.4805984,95197.0,95196.0,0.00116113]
[1734934356648,0.4855984,95197.0,95196.0,0.00116113]
[1734934357082,0.4805984,95197.0,95196.0,0.00116113]
[1734934357289,0.70349645,95197.0,95196.0,0.00016113]
[1734934357483,0.023,95196.0,95158.0,0.210175]
[1734934357746,0.023,95196.0,95159.0,0.00105076]
[1734934357747,0.210116,95186.0,95159.0,0.00105076]
[1734934357889,0.210119,95184.0,95164.0,0.210162]
[1734934358087,0.21013,95179.0,95151.0,0.21019]
[1734934358288,0.19034566,95170.0,95140.0,0.01242606]
[1734934358550,0.10235604,95169.0,95148.0,0.210197]
[1734934358817,0.210155,95168.0,95148.0,0.210197]
[1734934359009,0.00104764,95167.0,95157.0,0.210176]
[1734934359211,0.10235604,95167.0,95154.0,0.210184]
[1734934359388,0.1013084,95167.0,95160.0,0.21017]
[1734934360176,0.1013084,95167.0,95154.0,0.210184]
[1734934360377,0.00104764,95166.0,95154.0,0.21034397]
[1734934360576,0.1013084,95165.0,95154.0,0.21034397]
[1734934360980,0.1013084,95165.0,95154.0,0.42052897]
[1734934361515,0.1013084,95165.0,95154.0,0.42152897]
[1734934361734,0.1013084,95165.0,95154.0,0.42052897]
[1734934362162,0.1013084,95165.0,95154.0,0.42252897]
[1734934362788,0.1013084,95165.0,95154.0,0.42152897]
[1734934362996,0.1013084,95165.0,95154.0,0.42352897]
[1734934363243,0.15,95187.0,95156.0,0.210181]
[1734934363447,0.15,95187.0,95157.0,0.00105069]
[1734934363448,0.10235604,95181.0,95157.0,0.00105069]
[1734934363655,0.10235604,95181.0,95173.0,0.210142]
[1734934363831,0.1013084,95181.0,95173.0,0.210142]
[1734934364797,0.1063084,95181.0,95173.0,0.210142]
[1734934365008,0.00104764,95180.0,95167.0,0.210155]
[1734934365233,0.00104764,95180.0,95173.0,0.210143]
[1734934365234,0.1013084,95180.0,95173.0,0.210143]
[1734934366211,0.1013084,95180.0,95168.0,0.210152]
[1734934366425,0.004,95181.0,95169.0,0.00105065]
[1734934366632,0.004,95181.0,95175.0,0.210137]
[1734934366827,0.004,95181.0,95177.0,0.420268]
[1734934367027,0.00104764,95191.0,95155.0,0.1]
[1734934367315,0.1013084,95190.0,95183.0,0.21012]
[1734934367489,0.00104764,95189.0,95183.0,0.21012]
[1734934367759,0.1013084,95188.0,95178.0,0.210131]
[1734934367946,0.004,95181.0,95178.0,0.210131]
[1734934368279,0.002,95182.0,95178.0,0.210131]
[1734934368480,0.1013084,95188.0,95178.0,0.210131]
[1734934368883,0.1013084,95188.0,95170.0,0.210148]
[1734934369112,0.00104764,95187.0,95170.0,0.210148]
[1734934369276,0.1013084,95186.0,95170.0,0.210148]